[Event "1st FIDE Olympiad DIS 2023"]
[Site "Belgrade"]
[Date "2023.02.02"]
[Round "4.9"]
[White "Alam, Khorshed"]
[Black "Morales Romero, Pedro"]
[Result "1-0"]
[ECO "D01"]
[WhiteElo "2065"]
[BlackElo "2339"]
[Annotator "TA"]
[PlyCount "53"]
[EventDate "2023.01.30"]
[EventType "team-tourn"]
[EventCountry "SRB"]
[SourceTitle "playchess.com"]
[Source "ChessBase"]
[SourceQuality "1"]
[WhiteTeam "Bangladesh"]
[BlackTeam "Cuba"]
[WhiteTeamCountry "BAN"]
[BlackTeamCountry "CUB"]
[TimeControl "40/5400+30:1800+30"]

{[%evp 9,53,-10,-2,-4,20,25,46,37,63,46,60,56,120,106,124,121,141,110,114,113,184,173,187,187,187,179,174,183,181,179,170,122,235,235,231,223,214,78,79,92,354,343,444,404,922,910]} 1. d4 {[%emt 0:00:05]} Nf6 {[%emt 0:00:21]} 2. Bf4 {[%emt 0:00:28]} g6 {[%emt 0:00:15]} 3. Nc3 {[%emt 0:00:41]} d5 {[%emt 0:00:30]} 4. Qd2 {[%emt 0:00:42]} Bg7 {[%emt 0:00:49]} 5. Bh6 {[%emt 0:01:23]} Bxh6 {[%emt 0:00:28]} 6. Qxh6 {[%emt 0:00:08] D01: Veresov Opening.} c5 {[%emt 0:00:15] 6...c6 is the hot move.} 7. e3 {[%emt 0:04:57]} Nc6 {[%emt 0:04:14]} 8. Bb5 {[%emt 0:01:40] [#] White is slightly better.} Bg4 $146 {[%emt 0:03:04]} ({Predecessor:} 8... Qb6 9. Nge2 Bd7 10. O-O a6 11. Bxc6 Bxc6 12. b3 O-O-O 13. a4 cxd4 14. exd4 Kb8 {½-½ Jobava,B (2603)-Cheparinov,I (2667) Ville d'Orsay online Blitz 2021 (9)}) 9. f3 {[%emt 0:00:14] White is more active.} Bd7 {[%emt 0:01:35]} 10. dxc5 {[%emt 0:04:31]} Qa5 {[%emt 0:09:17] [#]} (10... Nb8 $14) 11. a3 $1 $16 {[%emt 0:05:07]} g5 {[%emt 0:07:40]} 12. Qxg5 {[%emt 0:07:04]} Rg8 {[%emt 0:02:16]} 13. Qf4 {[%emt 0:00:11]} Rxg2 {[%emt 0:00:40]} 14. Nge2 {[%emt 0:00:16]} Qd8 {[%emt 0:10:19]} (14... O-O-O $16) 15. O-O-O $18 {[%emt 0:00:49]} e5 {[%emt 0:00:47]} 16. Qh4 {[%emt 0:00:19] Threatens to win with Rhg1.} Qe7 {[%emt 0:01:03]} 17. Rhg1 {[%emt 0:00:39]} (17. Nxd5 Nxd5 18. Qxh7 Nf6 19. Qh8+ Rg8 $17) 17... Rxg1 {[%emt 0:00:28]} 18. Rxg1 {[%emt 0:00:01]} ({Don't play} 18. Nxg1 O-O-O $16) 18... O-O-O {[%emt 0:00:25]} 19. b4 {[%emt 0:02:40]} Bf5 {[%emt 0:03:58]} 20. Bd3 {[%emt 0:05:09]} (20. Rd1 $18) 20... e4 {[%emt 0:05:07]} (20... Bxd3 $16 {is a better defense.} 21. cxd3 Qe6) 21. fxe4 {[%emt 0:00:53]} dxe4 {[%emt 0:00:48]} 22. Bc4 {[%emt 0:01:10]} Ne5 {[%emt 0:01:16]} 23. Bb3 {[%emt 0:02:54]} (23. Rf1 $18 {has better winning chances.} Nf3 24. Qf4 (24. Qh6 Bg6 $16)) 23... Nf3 $16 {[%emt 0:09:24][%csl LRg1,LRh4] [#]} 24. Qf4 {[%emt 0:00:08] The board is on fire.} Bd7 {[%emt 0:05:15][%mdl 8192]} (24... Qd7 $2 25. Rd1 Nh5 26. Qh6 $18) (24... Bg6 $16) 25. Rg7 $18 {[%emt 0:01:51]} Ne5 {[%emt 0:10:35]} 26. Ng3 {[%emt 0:03:54]} ({Not} 26. Nxe4 Nxe4 27. Nd4 (27. Qxe4 $2 {is the wrong capture.} Qf6 $19) 27... Nf6 $17) 26... Neg4 {[%emt 0:06:47]} (26... Ng6 $142 27. Qg5 Rf8 28. Ngxe4 Nxe4 29. Qxe7 {[%mdl 64] Remove Defender} Nxe7) 27. Rxf7 {[%emt 0:00:59] Weighted Error Value: White=0.17 (very precise) /Black=0.44} 1-0

[Event "1st FIDE Olympiad DIS 2023"]
[Site "Belgrade"]
[Date "2023.02.02"]
[Round "4.9"]
[White "Banda Aaron"]
[Black "Kevorkov, Artur"]
[Result "1/2-1/2"]
[ECO "D05"]
[WhiteElo "1901"]
[BlackElo "2158"]
[Annotator "TA"]
[PlyCount "66"]
[EventDate "2023.01.30"]
[EventType "team-tourn"]
[EventCountry "SRB"]
[SourceTitle "playchess.com"]
[Source "ChessBase"]
[SourceQuality "1"]
[WhiteTeam "Zambia"]
[BlackTeam "Germany"]
[WhiteTeamCountry "ZAM"]
[BlackTeamCountry "GER"]
[TimeControl "40/5400+30:1800+30"]

{[%evp 11,66,-2,10,0,6,-36,38,0,0,-47,8,9,28,18,36,38,66,33,43,10,83,108,90,70,81,0,-11,-29,-32,-17,-7,-39,-37,-38,-38,-36,-35,-31,-32,-46,-48,-65,-39,-60,-62,-81,-56,-49,-22,-29,-19,-83,-75,-156,-41,-33,-27]} 1. d4 {[%emt 0:00:05]} d5 {[%emt 0:00:18]} 2. Nf3 {[%emt 0:00:27]} Nf6 {[%emt 0:00:57]} 3. e3 {[%emt 0:00:44][%cal Be2e3,Be3e4,Be4e5][%mdl 32]} c5 {[%emt 0:00:33]} 4. c3 {[%emt 0:01:33]} e6 {[%emt 0:01:29]} 5. Bd3 {[%emt 0:00:28]} Nc6 {[%emt 0:00:22]} 6. Nbd2 {[%emt 0:00:44]} Bd6 {[%emt 0:13:22]} 7. Qe2 {[%emt 0:03:04] D05: Colle System with ...e6.} O-O {[%emt 0:03:26]} 8. e4 {[%emt 0:01:01]} Be7 {[%emt 0:08:24]} (8... dxe4 $15 9. Nxe4 Nxe4 10. Bxe4 (10. Qxe4 f5 $15) 10... cxd4) 9. e5 {[%emt 0:02:36] White is slightly better.} Nd7 {[%emt 0:00:12] [#]} 10. b3 $146 {[%emt 0:01:20]} (10. a3 $11 {is superior.}) ({Predecessor:} 10. O-O b6 11. Re1 Bb7 12. Nf1 cxd4 13. cxd4 Rc8 14. a3 Re8 15. Bd2 Nf8 16. Rac1 {0-1 Matejic,P-Medic,R (1337) SRB-ch U16 Subotica 2021 (7)}) 10... Re8 {[%emt 0:03:35]} (10... cxd4 $15 11. cxd4 Nb4) 11. Bb2 {[%emt 0:00:30]} f6 {[%emt 0:05:19]} 12. O-O {[%emt 0:09:21]} a5 {[%emt 0:05:37]} 13. a4 {[%emt 0:04:19]} b6 {[%emt 0:02:25]} 14. Bb5 {[%emt 0:01:24] White is more active.} (14. exf6 $5 Bxf6 15. Ne4 $14) 14... Qc7 {[%emt 0:01:16]} 15. c4 {[%emt 0:04:29]} f5 {[%emt 0:10:30]} (15... fxe5 $11 {keeps the balance.} 16. cxd5 (16. Nxe5 Ndxe5 17. cxd5 exd5 $11) (16. dxe5 d4 $11) 16... exd5) 16. cxd5 {[%emt 0:03:47]} exd5 {[%emt 0:02:42]} 17. Rac1 {[%emt 0:02:40][%cal Od2c4]} Nf8 {[%emt 0:02:18]} 18. dxc5 {[%emt 0:05:58]} (18. Nc4 $1 $16) 18... bxc5 $11 {[%emt 0:00:02]} 19. Nd4 {[%emt 0:06:34] Prevents Ne6} Nxd4 {[%emt 0:00:49]} 20. Bxd4 {[%emt 0:00:41][%mdl 64] Pin} Rd8 {[%emt 0:00:40]} 21. f4 {[%emt 0:05:15]} Ne6 {[%emt 0:00:07]} 22. Bb2 {[%emt 0:02:30]} Qb6 {[%emt 0:00:11]} 23. Kh1 {[%emt 0:02:30]} Ba6 {[%emt 0:00:16]} 24. Bxa6 {[%emt 0:03:22]} Qxa6 {[%emt 0:00:00]} 25. Qxa6 {[%emt 0:00:41]} Rxa6 26. g3 {[%emt 0:02:00]} Rb8 {[%cal Oc5c4] Strongly threatening ...c4!} 27. Bc3 {[%emt 0:03:11]} Kf7 {[%emt 0:02:03]} 28. h4 {[%emt 0:00:00]} Nd8 {[%emt 0:00:30]} 29. Rf3 {[%emt 0:00:00]} Ke6 {[%emt 0:00:30]} 30. Kg2 {[%emt 0:00:47]} Nc6 {[%emt 0:06:44]} 31. Kf1 {[%emt 0:03:43] [#]} (31. Bb2 $11) 31... Rab6 $1 $17 {[%emt 0:01:33] ...Rxb3 is the strong threat.} 32. Kg2 {[%emt 0:01:40] [#]} (32. Ba1 $142) 32... Nb4 {[%emt 0:04:16]} ({Black should play} 32... Rxb3 $1 $17 {aiming for ...Ra3.} 33. Nxb3 Rxb3) 33. Bxb4 {[%emt 0:01:03]} Rxb4 {[%emt 0:00:02] Weighted Error Value: White=0.22 (precise) /Black=0.24 (precise)} 1/2-1/2

[Event "1st FIDE Olympiad DIS 2023"]
[Site "Belgrade"]
[Date "2023.02.02"]
[Round "4.10"]
[White "Larduet Despaigne, Carlos"]
[Black "Syed Ejaz Husain"]
[Result "1-0"]
[ECO "D45"]
[WhiteElo "2277"]
[BlackElo "1952"]
[Annotator "TA"]
[PlyCount "67"]
[EventDate "2023.01.30"]
[EventType "team-tourn"]
[EventCountry "SRB"]
[SourceTitle "playchess.com"]
[Source "ChessBase"]
[SourceQuality "1"]
[WhiteTeam "Cuba"]
[WhiteTeamCountry "CUB"]
[TimeControl "40/5400+30:1800+30"]

{[%evp 19,67,0,-3,0,0,0,62,68,119,119,131,108,172,165,251,237,224,134,619,607,595,580,1106,1099,1066,1045,29990,29991,29991,29983,29983,29984,29984,2225,2070,2052,2035,1875,29984,29987,29991,29990,29993,29994,29994,29995,29998,29990,29993,29992]} 1. d4 {[%emt 0:00:14]} d5 {[%emt 0:00:56]} 2. c4 {[%emt 0:00:15]} e6 {[%emt 0:00:06]} 3. Nc3 {[%emt 0:01:19]} c6 {[%emt 0:00:10]} 4. e3 {[%emt 0:04:21]} Nf6 {[%emt 0:00:19]} 5. Nf3 {[%emt 0:00:24]} Nbd7 {[%emt 0:00:10]} 6. Qc2 {[%emt 0:00:11]} Bd6 {[%emt 0:00:16]} 7. g4 {[%emt 0:02:05]} Nxg4 {[%emt 0:06:35]} 8. Rg1 {[%emt 0:01:06][%cal Bh1g1,Bg1g7,Bg7g2][%mdl 32]} Nxh2 {[%emt 0:18:03]} 9. Nxh2 {[%emt 0:02:12]} Bxh2 10. Rxg7 {[%emt 0:00:10]} Nf8 {[%emt 0:06:51]} 11. Rg2 {[%emt 0:08:49] Wards off Ng6. D45: Semi-Slav: 5 e3.} Bd6 {[%emt 0:04:06] 11...Bd6 is better than 11...Bc7.} 12. e4 {[%emt 0:09:50]} Bb4 {[%emt 0:12:59]} (12... Ng6 $11) 13. Bg5 {[%emt 0:02:47] White is slightly better.} f6 {[%emt 0:00:29] [#]} (13... Be7 $14 14. Bxe7 Qxe7) 14. Bd2 $146 {[%emt 0:05:45]} ({Predecessor:} 14. Be3 Bd7 15. Be2 Qe7 16. a3 Bxc3+ 17. bxc3 dxc4 18. Bxc4 O-O-O 19. Qa4 Kb8 20. Rb1 {1-0 Rich,A (2262)-Shankland,S (2106) San Francisco TNM Spring op 2006 (6)}) 14... Bxc3 {[%emt 0:01:17]} 15. Bxc3 {[%emt 0:00:19] And now 0-0-0 would win.} Qe7 {[%emt 0:08:21] Black is weak on the dark squares} (15... Qc7 $16) 16. O-O-O $18 {[%emt 0:01:04] aiming for exd5.} dxc4 {[%emt 0:05:15]} (16... dxe4 $142 17. Qxe4 Ng6) 17. Bxc4 {[%emt 0:02:27]} Bd7 {[%emt 0:00:51]} 18. Qb3 {[%emt 0:02:15]} (18. Qd2 $18) 18... O-O-O $2 {[%emt 0:01:23][%mdl 8192]} (18... b5 $16) 19. Bb4 {[%emt 0:00:24]} Qf7 {[%emt 0:02:00]} 20. Qa3 {[%emt 0:00:27]} Kb8 {[%emt 0:01:10]} 21. Bd6+ {[%emt 0:00:39]} Ka8 {[%emt 0:02:01]} 22. Bc5 {[%emt 0:01:46][%csl Gc5][%cal Ra3a7] A strong pair of Bishops.} a6 {[%emt 0:06:00] [#]} 23. Bxa6 $1 {[%emt 0:00:34][%mdl 512]} Be8 {[%emt 0:01:42]} 24. Bc4+ {[%emt 0:05:09]} Kb8 {[%emt 0:00:22]} 25. Qa7+ {[%emt 0:00:02]} Kc8 {[%emt 0:00:56]} 26. Bb6 {[%emt 0:00:05]} (26. Qa8+ $142 Kc7 27. Qa5+ Kd7 28. d5 cxd5 29. exd5 e5 30. Bb5+ Kc8 31. Bb6) 26... Nd7 {[%emt 0:03:01]} 27. Qa8+ {[%emt 0:00:15]} Nb8 {[%emt 0:00:09]} 28. Bxd8 {[%emt 0:00:17][%cal Od1g1] [#] Hoping for Rdg1!} Bd7 {[%emt 0:02:39]} 29. Bb6 {[%emt 0:00:32][%cal Bd8b6,Bb6c5,Bc5d6,Bd6b8][%mdl 32] White mates.} h5 {[%emt 0:00:44]} 30. Bc5 {[%emt 0:02:41]} Kc7 {[%emt 0:00:55]} 31. Qa5+ {[%emt 0:00:16]} Kc8 {[%emt 0:02:38]} 32. Bd6 {[%emt 0:00:43][%csl Gd6][%cal Ra5c7]} Be8 {[%emt 0:04:14]} 33. Bxb8 {[%emt 0:05:39]} b5 {[%emt 0:05:28]} 34. Bxe6+ {[%emt 0:00:34] White took control after the opening.   Weighted Error Value: White=0.06 (flawless) /Black=0.92} 1-0

[Event "1st FIDE Olympiad DIS 2023"]
[Site "Belgrade"]
[Date "2023.02.02"]
[Round "4.10"]
[White "Koessler, Wolfgang"]
[Black "Nkhupi Robert"]
[Result "1-0"]
[ECO "B12"]
[WhiteElo "1746"]
[BlackElo "1738"]
[Annotator "NA RC COMBH"]
[PlyCount "105"]
[EventDate "2023.01.30"]
[EventType "team-tourn"]
[EventCountry "SRB"]
[SourceTitle "playchess.com"]
[Source "ChessBase"]
[SourceQuality "1"]
[WhiteTeam "Germany"]
[BlackTeam "Zambia"]
[WhiteTeamCountry "GER"]
[BlackTeamCountry "ZAM"]
[TimeControl "40/5400+30:1800+30"]

1. e4 {[%emt 0:00:07]} c6 {[%emt 0:02:32]} 2. d4 {[%emt 0:00:21]} d5 {[%emt 0:00:22]} 3. e5 {[%emt 0:00:51]} Bf5 {[%emt 0:01:01]} 4. h4 {[%emt 0:00:45]} h5 {[%emt 0:01:59]} 5. Ne2 {[%emt 0:01:34]} e6 {[%emt 0:05:54]} 6. Ng3 {[%emt 0:01:34]} Bg6 {[%emt 0:00:02]} 7. Be2 {[%emt 0:05:50]} c5 {[%emt 0:00:32]} 8. c3 {[%emt 0:06:43]} cxd4 {[%emt 0:05:08]} 9. cxd4 {[%emt 0:00:43]} Nc6 {[%emt 0:00:37]} 10. Bd3 {[%emt 0:05:11]} Bb4+ {[%emt 0:02:59]} 11. Kf1 {[%emt 0:04:43]} Qb6 {[%emt 0:00:34]} 12. Bxg6 {[%emt 0:01:21]} fxg6 {[%emt 0:00:37]} 13. Ne2 {[%emt 0:02:40]} O-O-O {[%emt 0:01:09]} 14. Be3 {[%emt 0:02:00]} Rf8 {[%emt 0:00:35]} 15. Kg1 {[%emt 0:01:54]} Nh6 {[%emt 0:01:11]} 16. Nf4 {[%emt 0:03:24]} Rxf4 {[%emt 0:01:00]} 17. Bxf4 {[%emt 0:00:13]} Qxd4 {[%emt 0:01:24]} 18. Qxd4 {[%emt 0:05:03]} Nxd4 {[%emt 0:00:21]} 19. Bxh6 {[%emt 0:00:10]} gxh6 {[%emt 0:00:08]} 20. Na3 {[%emt 0:04:42]} Kd7 {[%emt 0:03:08]} 21. Rd1 {[%emt 0:02:44]} Bc5 {[%emt 0:01:06]} 22. Rh3 {[%emt 0:03:09]} Rf8 {[%emt 0:01:47]} 23. Rd2 {[%emt 0:00:32]} Nc6 {[%emt 0:01:01]} 24. Nc4 {[%emt 0:20:16]} b5 {[%emt 0:10:31]} 25. Ne3 {[%emt 0:02:58]} Bd4 {[%emt 0:07:42]} 26. Rg3 {[%emt 0:02:24]} Rg8 {[%emt 0:03:01]} 27. f4 {[%emt 0:03:50]} g5 {[%emt 0:02:14]} 28. hxg5 {[%emt 0:04:27]} hxg5 {[%emt 0:00:03]} 29. Rxd4 {[%emt 0:02:15]} Nxd4 {[%emt 0:00:08]} 30. Rxg5 {[%emt 0:00:04]} Rxg5 {[%emt 0:00:58]} 31. fxg5 {[%emt 0:00:05]} Ne2+ {[%emt 0:00:42]} 32. Kf2 {[%emt 0:00:54]} Nf4 {[%emt 0:00:03]} 33. Kg3 {[%emt 0:00:46]} Ng6 {[%emt 0:00:07]} 34. Nc2 {[%emt 0:02:18]} Ke7 {[%emt 0:01:54]} 35. Nd4 {[%emt 0:00:20]} a6 {[%emt 0:00:44]} 36. Nf3 {[%emt 0:01:52]} Kf7 {[%emt 0:00:27]} 37. b4 {[%emt 0:02:17]} Ke7 {[%emt 0:03:13]} 38. Nd4 {[%emt 0:05:40]} Kd7 {[%emt 0:02:17]} 39. Nf3 {[%emt 0:00:12]} Ke7 {[%emt 0:00:03]} 40. Nd4 {[%emt 0:00:40]} Kf7 {[%emt 0:03:32]} 41. Nc6 {[%emt 0:31:50]} Ke8 {[%emt 0:32:30]} 42. Nb8 {[%emt 0:00:00]} d4 {[%emt 0:00:00]} 43. Nxa6 {[%emt 0:00:00]} d3 {[%emt 0:00:00]} 44. Kf2 {[%emt 0:00:00]} Nxe5 {[%emt 0:00:00]} 45. Nc7+ {[%emt 0:00:00]} Kd7 {[%emt 0:00:00]} 46. Nxb5 {[%emt 0:00:00]} Nc4 {[%emt 0:00:00]} 47. Nc3 {[%emt 0:00:00]} e5 {[%emt 0:00:00]} 48. a4 {[%emt 0:00:00]} Ke6 {[%emt 0:00:00]} 49. a5 {[%emt 0:00:00]} Kf5 {[%emt 0:00:00]} 50. a6 {[%emt 0:00:00]} Kxg5 {[%emt 0:00:00]} 51. a7 {[%emt 0:00:00]} Nb6 {[%emt 0:00:00]} 52. b5 {[%emt 0:00:00]} Kf5 {[%emt 0:00:00]} 53. Nd5 {[%emt 0:00:00]} 1-0

[Event "1st FIDE Olympiad DIS 2023"]
[Site "Belgrade"]
[Date "2023.02.02"]
[Round "4.11"]
[White "Sarkar, Bappi"]
[Black "Interian Rodriguez, Alberto D."]
[Result "0-1"]
[ECO "E94"]
[WhiteElo "1778"]
[BlackElo "2082"]
[Annotator "TA"]
[PlyCount "80"]
[EventDate "2023.01.30"]
[EventType "team-tourn"]
[EventCountry "SRB"]
[SourceTitle "playchess.com"]
[Source "ChessBase"]
[SourceQuality "1"]
[WhiteTeam "Bangladesh"]
[BlackTeam "Cuba"]
[WhiteTeamCountry "BAN"]
[BlackTeamCountry "CUB"]
[TimeControl "40/5400+30:1800+30"]

{[%evp 18,80,-11,-16,-12,-9,0,0,11,-68,-65,-54,-48,-149,-147,-218,-211,-219,-180,-211,-86,-201,-196,-187,-196,-188,-195,-258,-241,-329,-317,-331,-327,-327,-329,-326,-326,-450,-447,-443,-437,-459,-453,-584,-582,-674,-668,-663,-657,-678,-661,-612,-550,-789,-758,-808,-811,-809,-587,-717,-706,-714,-702,-992,-981]} 1. d4 {[%emt 0:01:21]} Nf6 {[%emt 0:00:20]} 2. c4 {[%emt 0:00:22]} g6 {[%emt 0:00:06]} 3. Nc3 {[%emt 0:00:48]} Bg7 {[%emt 0:00:02]} 4. Nf3 {[%emt 0:00:58]} O-O {[%emt 0:00:03]} 5. e4 {[%emt 0:03:54]} d6 {[%emt 0:00:04]} 6. Be2 {[%emt 0:00:55]} e5 {[%emt 0:00:10]} 7. dxe5 {[%emt 0:12:47]} dxe5 {[%emt 0:04:48]} 8. Bg5 {[%emt 0:00:40]} Nbd7 {[%emt 0:35:30][%cal Bb8d7,Bd7f8,Bf8e6][%mdl 32]} 9. Qd2 {[%emt 0:07:09]} c6 {[%emt 0:02:39]} 10. O-O {[%emt 0:18:00]} (10. Rd1 $5 {[%cal Rf3e5]}) 10... Qc7 {[%emt 0:06:01] E94: King's Indian: Classical: 6 Be2 e5 7 0-0: Various Black 7th moves.} 11. b4 {[%emt 0:06:47]} Re8 {[%emt 0:01:14]} 12. Rfd1 {[%emt 0:03:05]} Nf8 {[%emt 0:01:28] The position is equal.} 13. Qd6 {[%emt 0:04:55]} ({White should try} 13. h3 $11) 13... Qxd6 $15 {[%emt 0:04:11]} 14. Rxd6 {[%emt 0:00:03]} Ne6 {[%emt 0:00:04] [#]} 15. Be3 $146 {[%emt 0:04:59]} (15. Nxe5 $2 Nxg5 16. f4 Ngxe4 17. Nxe4 Nxe4 $19) (15. c5 $15) ({Predecessor:} 15. Bh4 Nh5 16. b5 Nd4 17. Nd2 Nf4 18. Bf3 Nfe6 19. bxc6 bxc6 20. Bg3 Nc5 21. Bh4 {0-1 Pap,K (1747)-Kaman,A (2115) HUN-chT2 Barcza 1516 2015 (7.7)}) 15... Bf8 $17 {[%emt 0:01:45]} 16. c5 {[%emt 0:01:07]} (16. Rad1 $17) 16... Bxd6 $19 {[%emt 0:00:14]} 17. cxd6 {[%emt 0:00:07]} Ng4 {[%emt 0:00:19]} 18. Rd1 {[%emt 0:04:24]} Bd7 {[%emt 0:02:37]} (18... Nxe3 $19 19. fxe3 a5) 19. Nxe5 {[%emt 0:04:34]} Nxe5 {[%emt 0:00:08]} 20. f4 {[%emt 0:00:16] [#] Prevents f6} Nxf4 {[%emt 0:04:06]} 21. Bxf4 {[%emt 0:00:10]} f6 {[%emt 0:00:17]} 22. Rd4 {[%emt 0:04:14]} (22. a4 $142) 22... Rad8 {[%emt 0:01:27]} 23. Bc4+ {[%emt 0:00:26]} Be6 {[%emt 0:00:31]} 24. Be2 {[%emt 0:05:02]} Rd7 {[%emt 0:00:21]} 25. b5 {[%emt 0:00:11]} Red8 {[%emt 0:12:12]} 26. bxc6 {[%emt 0:01:16]} bxc6 {[%emt 0:00:13]} 27. Na4 {[%emt 0:00:18]} Rxd6 {[%emt 0:00:12] Black is clearly winning.} (27... Bxa2 $2 {is the wrong capture.} 28. Nc5 Rxd6 29. Ra4 $19) 28. Rxd6 {[%emt 0:00:24]} Rxd6 {[%emt 0:00:00]} 29. Nc5 {[%emt 0:00:19]} Bxa2 {[%emt 0:00:07]} 30. Be3 {[%emt 0:01:12]} Bc4 {[%emt 0:00:36]} 31. Kf2 {[%emt 0:01:50]} Bxe2 {[%emt 0:00:37]} 32. Kxe2 {[%emt 0:00:01][%mdl 4096] Endgame KRN-KBN} Kf7 {[%emt 0:00:50]} 33. h3 {[%emt 0:00:34]} h5 {[%emt 0:00:06]} 34. Bf2 {[%emt 0:00:29]} Nc4 {[%emt 0:00:24]} 35. Na6 {[%emt 0:01:08]} Rd2+ {[%emt 0:00:11]} 36. Ke1 {[%emt 0:00:44]} Ra2 {[%emt 0:00:16]} 37. Nb4 {[%emt 0:00:09]} Ra1+ {[%emt 0:00:14]} 38. Ke2 {[%emt 0:00:10]} Ne5 {[%emt 0:00:47]} 39. Bd4 {[%emt 0:02:53]} Ra4 {[%emt 0:00:02]} 40. Bxe5 {[%emt 0:00:11]} Rxb4 {[%emt 0:00:08] Weighted Error Value: White=0.58/Black=0.13 (very precise)} 0-1

[Event "1st FIDE Olympiad DIS 2023"]
[Site "Belgrade"]
[Date "2023.02.02"]
[Round "4.11"]
[White "Sauti Harry"]
[Black "Dorner, Matthias"]
[Result "0-1"]
[ECO "B13"]
[WhiteElo "1693"]
[BlackElo "2180"]
[Annotator "TA"]
[PlyCount "88"]
[EventDate "2023.01.30"]
[EventType "team-tourn"]
[EventCountry "SRB"]
[SourceTitle "playchess.com"]
[Source "ChessBase"]
[SourceQuality "1"]
[WhiteTeam "Zambia"]
[BlackTeam "Germany"]
[WhiteTeamCountry "ZAM"]
[BlackTeamCountry "GER"]
[TimeControl "40/5400+30:1800+30"]

{[%evp 14,88,60,39,41,38,54,50,39,52,43,30,70,68,106,-15,0,0,43,-18,-13,-109,-31,-97,-85,-188,-178,-244,-235,-231,-238,-260,-233,-281,-253,-273,-268,-275,-235,-283,-289,-280,-282,-659,-649,-644,-634,-737,-770,-773,-768,-789,-744,-844,-833,-937,-943,-958,-949,-1066,-1049,-1069,-1062,-1285,-1278,-1162,-1038,-1363,-825,-2045,-2075,-29989,-29990,-29990,-29991,-29998,-29999]} 1. e4 {[%emt 0:00:40]} c6 {[%emt 0:00:05]} 2. d4 {[%emt 0:02:06]} d5 {[%emt 0:00:05]} 3. exd5 {[%emt 0:00:54]} cxd5 {[%emt 0:00:06]} 4. Bd3 {[%emt 0:02:43]} Nf6 {[%emt 0:00:49]} 5. c3 {[%emt 0:03:00]} Nc6 {[%emt 0:00:23]} 6. Bf4 {[%emt 0:02:13]} Bg4 {[%emt 0:00:40]} 7. Qb3 {[%emt 0:01:15]} Qb6 {[%emt 0:00:06]} 8. Nd2 {[%emt 0:10:36] [#]} Bh5 $146 {[%emt 0:00:09] B13: Caro-Kann: Exchange Variation and Panov-Botvinnik Attack.} ({Predecessor:} 8... Qxb3 9. axb3 e6 10. b4 Kd7 11. Ngf3 Bxf3 12. Nxf3 Bd6 13. Be3 Ne4 14. O-O a6 15. Ne1 f5 16. Be2 {1-0 Perez Gormaz,M (2397)-Qashashvili,A (2505) Titled Tuesday intern op 06th Sep Early blitz 2022 (8)}) 9. Ngf3 {[%emt 0:02:54]} Bg6 {[%emt 0:00:10]} 10. Bb5 {[%emt 0:02:55]} Nh5 {[%emt 0:06:22] White is slightly better.} 11. Be3 {[%emt 0:04:10]} e6 $1 {[%emt 0:00:53]} 12. O-O {[%emt 0:00:53]} Be7 {[%emt 0:01:17]} 13. Ne5 {[%emt 0:02:45]} Rc8 {[%emt 0:00:44] [#]} 14. Nxc6 {[%emt 0:01:22]} (14. c4 $1 $16) 14... bxc6 $11 {[%emt 0:00:10]} 15. Be2 {[%emt 0:00:40]} O-O {[%emt 0:00:22]} 16. Qd1 {[%emt 0:00:40]} ({White should play} 16. Qxb6 $14 axb6 17. Nf3) 16... Nf6 {[%emt 0:00:10]} 17. b3 {[%emt 0:00:44] [#]} (17. b4 $1 $11 {remains equal.}) 17... a5 {[%emt 0:00:25]} (17... Ba3 $1 $17 18. Nf3 Bb2) 18. a4 {[%emt 0:05:11]} (18. Nf3 $15) 18... c5 {[%emt 0:01:05] Black is more active. Black converts the advantage convincingly.} 19. f3 {[%emt 0:02:48]} (19. Bb5 $17 {was necessary.}) 19... cxd4 $19 {[%emt 0:00:31]} 20. cxd4 {[%emt 0:00:44]} (20. Bxd4 $142 Bc5 21. Nb1) 20... Rc3 {[%emt 0:01:13]} 21. Bf2 {[%emt 0:00:39]} Rfc8 {[%emt 0:00:35]} 22. Kh1 {[%emt 0:00:23]} Bd6 {[%emt 0:01:14]} 23. Qe1 {[%emt 0:04:03]} Qb4 {[%emt 0:00:48]} 24. Rd1 {[%emt 0:01:21]} Rc2 {[%emt 0:01:38]} 25. Bb5 {[%emt 0:04:29]} Qa3 {[%emt 0:00:44]} 26. Bh4 {[%emt 0:00:46]} Bb4 {[%emt 0:00:25]} 27. Bg5 {[%emt 0:05:55]} Qb2 {[%emt 0:00:46]} 28. Qh4 $2 {[%emt 0:02:19]} (28. Qf2) 28... Bxd2 {[%emt 0:00:32]} 29. Bxd2 {[%emt 0:01:19]} Rxd2 {[%emt 0:00:09]} 30. Qg3 {[%emt 0:08:32]} Rxd1 {[%emt 0:01:29]} 31. Rxd1 {[%emt 0:00:21]} Qxb3 {[%emt 0:00:21]} 32. Re1 {[%emt 0:01:28]} Qc3 {[%emt 0:00:22]} 33. h3 {[%emt 0:00:46]} Qxd4 {[%emt 0:00:27]} 34. Kh2 {[%emt 0:01:01]} Qc3 {[%emt 0:00:19]} 35. Ba6 {[%emt 0:00:22]} Rd8 {[%emt 0:00:33]} 36. Qf2 {[%emt 0:03:04]} d4 {[%emt 0:00:24]} 37. Rd1 {[%emt 0:01:07]} h5 {[%emt 0:00:11]} 38. g4 {[%emt 0:02:07]} Qc7+ {[%emt 0:00:44]} 39. Kg2 {[%emt 0:00:46]} Qf4 {[%emt 0:00:37] aiming for ...d3.} 40. Bb7 {[%emt 0:01:47]} e5 {[%emt 0:00:48]} 41. Qb2 {[%emt 0:31:30]} hxg4 {[%emt 0:30:29]} 42. Qb6 {[%emt 0:00:21]} Rb8 {[%emt 0:01:58] Black mates.} 43. hxg4 {[%emt 0:00:44] [#]} Nxg4 $1 {[%emt 0:00:38]} 44. Qc7 {[%emt 0:02:12]} (44. Rh1 Ne3+) 44... Qh2+ {[%emt 0:00:05] Weighted Error Value: White=0.65/Black=0.15 (very precise)} 0-1